fUSD/lending_fUSD_20260611
["ID","MTS","AMOUNT","RATE_DAILY","PERIOD"]
[424784632,1781160649000,-2170.91192201,0.00019,2]
[424784638,1781160649000,-274.0,0.00019,2]
[424784648,1781160649000,-150.234,0.00019033,2]
[424784628,1781160649000,-348.0,0.00019,2]
[424784626,1781160649000,-262547.09934603,0.00019,2]
[424784640,1781160649000,-345.0,0.00019,2]
[424784637,1781160649000,-2052.3712962,0.00019,2]
[424784639,1781160649000,-932.0,0.00019,2]
[424784642,1781160649000,-380.0,0.00019,2]
[424784643,1781160649000,-2285.0,0.00019001,2]
[424784647,1781160649000,-150.185,0.00019033,2]
[424784646,1781160649000,-150.0,0.00019033,2]
[424784644,1781160649000,-300.0,0.00019032,2]
[424784645,1781160649000,-300.0,0.00019032,2]
[424784641,1781160649000,-2054.95234238,0.00019,2]
[424784651,1781160649000,-150.0,0.00019033,2]
[424784630,1781160649000,-1100.0,0.00019,2]
[424784650,1781160649000,-150.225,0.00019033,2]
[424784636,1781160649000,-206.0,0.00019,2]
[424784612,1781160649000,-300.17486916,0.00018944,2]
[424784634,1781160649000,-355.0,0.00019,2]
[424784608,1781160649000,-2005.9555727,0.00018531,2]
[424784607,1781160649000,-397.7,0.0001841,2]
[424784599,1781160649000,-151.0,0.0001805,2]
[424784598,1781160649000,-1064.597968,0.0001805,2]
[424784600,1781160649000,-151.0,0.0001805,2]
[424784609,1781160649000,-691.0,0.00018626,2]
[424784602,1781160649000,-350.0,0.00018059,2]
[424784601,1781160649000,-151.0,0.0001805,2]
[424784604,1781160649000,-167.30116669,0.000182,2]
[424784605,1781160649000,-168.90688265,0.00018231,2]
[424784606,1781160649000,-1125.0,0.00018337,2]
[424784603,1781160649000,-605.42,0.000182,2]
[424784610,1781160649000,-350.0,0.0001871,2]
[424784613,1781160649000,-249.0,0.00018945,2]
[424784614,1781160649000,-151.0,0.00018997,2]
[424784615,1781160649000,-300.0,0.00018999,2]
[424784616,1781160649000,-300.0,0.00018999,2]
[424784617,1781160649000,-442.97,0.00019,2]
[424784619,1781160649000,-879.53,0.00019,2]
[424784621,1781160649000,-930.56969256,0.00019,2]
[424784618,1781160649000,-979.61,0.00019,2]
[424784622,1781160649000,-150.0,0.00019,2]
[424784620,1781160649000,-150.0,0.00019,2]
[424784611,1781160649000,-527.81115247,0.000189,2]
[424784623,1781160649000,-439.24814526,0.00019,2]
[424784627,1781160649000,-354.0,0.00019,2]
[424784653,1781160649000,-1358.0,0.00019033,2]
[424784652,1781160649000,-3562.941,0.00019033,2]
[424784659,1781160649000,-177.25,0.00019076,2]
[424784685,1781160649000,-151.0,0.00019079,2]
[424784696,1781160649000,-151.0,0.00019079,2]
[424784688,1781160649000,-152.0,0.00019079,2]
[424784687,1781160649000,-209.40437684,0.00019079,2]
[424784689,1781160649000,-483.14966213,0.00019079,2]
[424784694,1781160649000,-2080.17592889,0.00019079,2]
[424784684,1781160649000,-152.0,0.00019079,2]
[424784690,1781160649000,-151.0,0.00019079,2]
[424784691,1781160649000,-1000.0,0.00019079,2]
[424784692,1781160649000,-151.0,0.00019079,2]
[424784693,1781160649000,-1377.42282658,0.00019079,2]
[424784686,1781160649000,-1328.27659266,0.00019079,2]
[424784699,1781160649000,-209.40437684,0.00019079,2]
[424784697,1781160649000,-152.0,0.00019079,2]
[424784700,1781160649000,-1050.42526909,0.00019079,2]
[424784708,1781160649000,-152.0,0.00019079,2]
[424784702,1781160649000,-151.0,0.00019079,2]
[424784698,1781160649000,-151.0,0.00019079,2]
[424784701,1781160649000,-1428.38747117,0.00019079,2]
[424784704,1781160649000,-151.0,0.00019079,2]
[424784705,1781160649000,-1481.2378076,0.00019079,2]
[424784703,1781160649000,-152.0,0.00019079,2]
[424784707,1781160649000,-151.0,0.00019079,2]
[424784706,1781160649000,-151.0,0.00019079,2]
[424784654,1781160649000,-384.0,0.00019033,2]
[424784695,1781160649000,-151.0,0.00019079,2]
[424784683,1781160649000,-174.61919141,0.00019079,2]
[424784709,1781160649000,-151.0,0.00019079,2]
[424784681,1781160649000,-364.12528585,0.00019079,2]
[424784657,1781160649000,-957.614,0.00019033,2]
[424784682,1781160649000,-1280.88388877,0.00019079,2]
[424784655,1781160649000,-1276.962,0.00019033,2]
[424784656,1781160649000,-1242.258,0.00019033,2]
[424784660,1781160649000,-153.0824764,0.00019079,2]
[424784658,1781160649000,-3643.0,0.00019033,2]
[424784661,1781160649000,-151.0,0.00019079,2]
[424784668,1781160649000,-1107.63007,0.00019079,2]
[424784666,1781160649000,-153.80113636,0.00019079,2]
[424784663,1781160649000,-200.0,0.00019079,2]
[424784664,1781160649000,-151.0,0.00019079,2]
[424784665,1781160649000,-1068.11,0.00019079,2]
[424784669,1781160649000,-151.0,0.00019079,2]
[424784662,1781160649000,-1030.0,0.00019079,2]
[424784667,1781160649000,-151.0,0.00019079,2]
[424784674,1781160649000,-1191.11104074,0.00019079,2]
[424784680,1781160649000,-151.0,0.00019079,2]
[424784677,1781160649000,-235.07905142,0.00019079,2]
[424784675,1781160649000,-151.0,0.00019079,2]
[424784679,1781160649000,-209.40437684,0.00019079,2]
[424784676,1781160649000,-1235.18214925,0.00019079,2]
[424784678,1781160649000,-154.22992786,0.00019079,2]
[424784673,1781160649000,-151.0,0.00019079,2]
[424784670,1781160649000,-1148.61238259,0.00019079,2]
[424784671,1781160649000,-162.6850253,0.00019079,2]
[424784672,1781160649000,-578.20924308,0.00019079,2]
[424784752,1781160650000,-500.0,0.00019079,2]
[424784750,1781160650000,-1980.8648231,0.00019079,2]
[424784751,1781160650000,-500.0,0.00019079,2]
[424784759,1781160650000,-500.0,0.00019079,2]
[424784748,1781160650000,-151.0,0.00019079,2]
[424784740,1781160650000,-151.0,0.00019079,2]
[424784745,1781160650000,-500.0,0.00019079,2]
[424784746,1781160650000,-1910.18787185,0.00019079,2]
[424784743,1781160650000,-152.0,0.00019079,2]
[424784742,1781160650000,-151.0,0.00019079,2]
[424784753,1781160650000,-151.0,0.00019079,2]
[424784749,1781160650000,-151.0,0.00019079,2]
[424784755,1781160650000,-500.0,0.00019079,2]
[424784771,1781160650000,-235.07905142,0.00019189,2]
[424784758,1781160650000,-500.0,0.00019079,2]
[424784757,1781160650000,-151.0,0.00019079,2]
[424784756,1781160650000,-151.0,0.00019079,2]
[424784762,1781160650000,-500.0,0.00019079,2]
[424784760,1781160650000,-151.0,0.00019079,2]
[424784765,1781160650000,-500.0,0.00019079,2]
[424784761,1781160650000,-500.0,0.00019079,2]
[424784763,1781160650000,-500.0,0.00019079,2]
[424784770,1781160650000,-151.0,0.00019178,2]
[424784764,1781160650000,-500.0,0.00019079,2]
[424784767,1781160650000,-151.0,0.00019134,2]
[424784769,1781160650000,-155.79619,0.00019178,2]
[424784741,1781160650000,-1842.0326633,0.00019079,2]
[424784754,1781160650000,-2054.15682156,0.00019079,2]
[424784736,1781160650000,-500.0,0.00019079,2]
[424784715,1781160650000,-500.0,0.00019079,2]
[424784747,1781160650000,-500.0,0.00019079,2]
[424784766,1781160650000,-235.07905142,0.00019134,2]
[424784710,1781160650000,-1536.04360648,0.00019079,2]
[424784712,1781160650000,-151.0,0.00019079,2]
[424784713,1781160650000,-152.0,0.00019079,2]
[424784722,1781160650000,-151.0,0.00019079,2]
[424784718,1781160650000,-721.12765534,0.00019079,2]
[424784716,1781160650000,-1592.87721992,0.00019079,2]
[424784717,1781160650000,-500.0,0.00019079,2]
[424784721,1781160650000,-152.0,0.00019079,2]
[424784719,1781160650000,-151.0,0.00019079,2]
[424784714,1781160650000,-151.0,0.00019079,2]
[424784720,1781160650000,-9552.16786547,0.00019079,2]
[424784723,1781160650000,-500.0,0.00019079,2]
[424784744,1781160650000,-151.0,0.00019079,2]
[424784724,1781160650000,-1651.81367706,0.00019079,2]
[424784726,1781160650000,-151.0,0.00019079,2]
[424784725,1781160650000,-500.0,0.00019079,2]
[424784727,1781160650000,-152.0,0.00019079,2]
[424784732,1781160650000,-151.0,0.00019079,2]
[424784728,1781160650000,-500.0,0.00019079,2]
[424784729,1781160650000,-151.0,0.00019079,2]
[424784730,1781160650000,-1712.93078311,0.00019079,2]
[424784733,1781160650000,-152.0,0.00019079,2]
[424784731,1781160650000,-500.0,0.00019079,2]
[424784735,1781160650000,-1776.30922209,0.00019079,2]
[424784737,1781160650000,-151.0,0.00019079,2]
[424784739,1781160650000,-500.0,0.00019079,2]
[424784738,1781160650000,-152.0,0.00019079,2]
[424784734,1781160650000,-500.0,0.00019079,2]
[424784772,1781160650000,-151.0,0.00019189,2]
[424784711,1781160650000,-500.0,0.00019079,2]
[424784774,1781160650000,-151.0,0.00019244,2]
[424784806,1781160650000,-500.0,0.00019999,2]
[424784803,1781160650000,-151.0,0.00019629,2]
[424784804,1781160650000,-691.0,0.00019879,3]
[424784807,1781160650000,-500.0,0.00019999,2]
[424784810,1781160650000,-196.84876651,0.00019999,2]
[424784812,1781160650000,-500.0,0.00019999,2]
[424784813,1781160650000,-506.55656557,0.00019999,2]
[424784816,1781160650000,-500.0,0.00019999,2]
[424784811,1781160650000,-500.0,0.00019999,2]
[424784814,1781160650000,-500.0,0.00019999,2]
[424784821,1781160650000,-500.0,0.00019999,2]
[424784815,1781160650000,-500.0,0.00019999,2]
[424784818,1781160650000,-500.0,0.00019999,2]
[424784808,1781160650000,-500.0,0.00019999,2]
[424784822,1781160650000,-500.0,0.00019999,2]
[424784820,1781160650000,-164.08593529,0.00019999,2]
[424784819,1781160650000,-558.12131975,0.00019999,2]
[424784833,1781160650000,-500.0,0.00019999,2]
[424784824,1781160650000,-500.0,0.00019999,2]
[424784823,1781160650000,-500.0,0.00019999,2]
[424784825,1781160650000,-500.0,0.00019999,2]
[424784832,1781160650000,-500.0,0.00019999,2]
[424784831,1781160650000,-500.0,0.00019999,2]
[424784826,1781160650000,-500.0,0.00019999,2]
[424784827,1781160650000,-500.0,0.00019999,2]
[424784830,1781160650000,-500.0,0.00019999,2]
[424784829,1781160650000,-500.0,0.00019999,2]
[424784768,1781160650000,-160.93281423,0.00019178,2]
[424784817,1781160650000,-500.0,0.00019999,2]
[424784805,1781160650000,-605.42,0.000199,2]
[424784828,1781160650000,-500.0,0.00019999,2]
[424784801,1781160650000,-741.39054701,0.00019627,2]
[424784802,1781160650000,-235.07905159,0.00019629,2]
[424784784,1781160650000,-151.0,0.00019409,2]
[424784773,1781160650000,-235.07905142,0.00019244,2]
[424784775,1781160650000,-300.0,0.00019249,2]
[424784777,1781160650000,-691.0,0.00019253,3]
[424784778,1781160650000,-235.07905142,0.00019299,2]
[424784779,1781160650000,-151.0,0.00019299,2]
[424784782,1781160650000,-151.0,0.00019354,2]
[424784780,1781160650000,-1125.0,0.00019303,2]
[424784781,1781160650000,-235.07905142,0.00019354,2]
[424784783,1781160650000,-235.07905142,0.00019409,2]
[424784785,1781160650000,-400.0,0.00019452,2]
[424784787,1781160650000,-235.07905142,0.00019464,2]
[424784794,1781160650000,-162.6850253,0.00019627,2]
[424784776,1781160650000,-300.0,0.00019249,2]
[424784795,1781160650000,-217.15233878,0.00019627,2]
[424784789,1781160650000,-235.07905142,0.00019519,2]
[424784798,1781160650000,-2157.14243826,0.00019627,2]
[424784799,1781160650000,-151.0,0.00019627,2]
[424784786,1781160650000,-285.0,0.00019452,2]
[424784792,1781160650000,-151.0,0.00019574,2]
[424784809,1781160650000,-500.0,0.00019999,2]
[424784796,1781160650000,-181.08010149,0.00019627,2]
[424784791,1781160650000,-235.07905142,0.00019574,2]
[424784793,1781160650000,-200.0,0.00019627,2]
[424784790,1781160650000,-151.0,0.00019519,2]
[424784800,1781160650000,-217.15233878,0.00019627,2]
[424784788,1781160650000,-151.0,0.00019464,2]
[424784797,1781160650000,-151.0,0.00019627,2]
[424784874,1781160651000,-400.0,0.00020136,2]
[424784868,1781160651000,-274.0,0.0002,2]
[424784862,1781160651000,-261.646186,0.0002,2]
[424784865,1781160651000,-355.0,0.0002,2]
[424784864,1781160651000,-279.0,0.0002,2]
[424784869,1781160651000,-932.0,0.0002,2]
[424784872,1781160651000,-153.08496381,0.0002,20]
[424784866,1781160651000,-491.0,0.0002,2]
[424784873,1781160651000,-300.0,0.000201,10]
[424784867,1781160651000,-206.0,0.0002,2]
[424784871,1781160651000,-380.0,0.0002,2]
[424784881,1781160651000,-225.18697532,0.00020175,2]
[424784877,1781160651000,-225.18697532,0.00020175,2]
[424784875,1781160651000,-200.0,0.00020175,2]
[424784878,1781160651000,-187.78006524,0.00020175,2]
[424784880,1781160651000,-151.0,0.00020175,2]
[424784879,1781160651000,-2236.95670847,0.00020175,2]
[424784882,1781160651000,-151.0,0.00020175,2]
[424784883,1781160651000,-661.72841598,0.000202,2]
[424784885,1781160651000,-397.7,0.00020381,2]
[424784884,1781160651000,-1125.0,0.00020319,2]
[424784886,1781160651000,-661.72841598,0.000204,2]
[424784870,1781160651000,-345.0,0.0002,2]
[424784888,1781160651000,-217.15233878,0.00020448,2]
[424784876,1781160651000,-162.6850253,0.00020175,2]
[424784863,1781160651000,-200.0,0.0002,10]
[424784837,1781160651000,-500.0,0.00019999,2]
[424784858,1781160651000,-292.0,0.0002,2]
[424784887,1781160651000,-153.80113636,0.00020448,2]
[424784835,1781160651000,-505.00879967,0.00019999,2]
[424784834,1781160651000,-299.45721022,0.00019999,2]
[424784836,1781160651000,-500.0,0.00019999,2]
[424784838,1781160651000,-293.63016324,0.00019999,2]
[424784839,1781160651000,-500.0,0.00019999,2]
[424784841,1781160651000,-500.0,0.00019999,2]
[424784845,1781160651000,-500.0,0.00019999,2]
[424784848,1781160651000,-500.0,0.00019999,2]
[424784842,1781160651000,-500.0,0.00019999,2]
[424784846,1781160651000,-500.0,0.00019999,2]
[424784840,1781160651000,-500.0,0.00019999,2]
[424784844,1781160651000,-500.0,0.00019999,2]
[424784843,1781160651000,-500.0,0.00019999,2]
[424784847,1781160651000,-613.04714944,0.00019999,2]
[424784849,1781160651000,-500.0,0.00019999,2]
[424784850,1781160651000,-150.0,0.0002,2]
[424784856,1781160651000,-348.0,0.0002,2]
[424784857,1781160651000,-400.0,0.0002,2]
[424784852,1781160651000,-23191.93504237,0.0002,20]
[424784855,1781160651000,-354.0,0.0002,2]
[424784851,1781160651000,-1495.80637961,0.0002,5]
[424784853,1781160651000,-661.72841598,0.0002,2]
[424784859,1781160651000,-1100.0,0.0002,2]
[424784854,1781160651000,-923.0,0.0002,2]
[424784861,1781160651000,-1624.0,0.0002,2]
[424784889,1781160651000,-691.0,0.00020505,4]
[424784860,1781160651000,-5417.66,0.0002,2]
[424784893,1781160651000,-301.97470022,0.00020723,2]
[424784926,1781160651000,-2504.78,0.00021087,2]
[424784924,1781160651000,-345.0,0.00021,2]
[424784923,1781160651000,-932.0,0.00021,2]
[424784925,1781160651000,-380.0,0.00021,2]
[424784922,1781160651000,-274.0,0.00021,2]
[424784927,1781160651000,-691.0,0.00021131,4]
[424784928,1781160651000,-200.0,0.00021271,2]
[424784945,1781160651000,-200.0,0.00021819,2]
[424784932,1781160651000,-151.0,0.00021271,2]
[424784929,1781160651000,-162.6850253,0.00021271,2]
[424784931,1781160651000,-2405.55389863,0.00021271,2]
[424784934,1781160651000,-151.0,0.00021271,2]
[424784933,1781160651000,-242.15909246,0.00021271,2]
[424784935,1781160651000,-1125.0,0.00021334,2]
[424784938,1781160651000,-691.0,0.00021758,5]
[424784937,1781160651000,-197.39,0.000217,7]
[424784936,1781160651000,-5417.66,0.00021676,2]
[424784939,1781160651000,-153.80113636,0.00021817,2]
[424784940,1781160651000,-198.08368006,0.00021817,2]
[424784944,1781160651000,-747.80937859,0.00021818,2]
[424784942,1781160651000,-599.60298507,0.00021818,2]
[424784946,1781160651000,-162.6850253,0.00021819,2]
[424784941,1781160651000,-575.2559993,0.00021818,2]
[424784943,1781160651000,-151.0,0.00021818,2]
[424784890,1781160651000,-661.72841598,0.000206,2]
[424784920,1781160651000,-491.0,0.00021,2]
[424784919,1781160651000,-355.0,0.00021,2]
[424784930,1781160651000,-201.93286098,0.00021271,2]
[424784917,1781160651000,-1624.0,0.00021,2]
[424784891,1781160651000,-200.0,0.00020723,2]
[424784921,1781160651000,-206.0,0.00021,2]
[424784894,1781160651000,-194.72792766,0.00020723,2]
[424784892,1781160651000,-162.6850253,0.00020723,2]
[424784896,1781160651000,-151.0,0.00020723,2]
[424784895,1781160651000,-2319.72410669,0.00020723,2]
[424784897,1781160651000,-233.5188934,0.00020723,2]
[424784901,1781160651000,-1051.47983417,0.000209,2]
[424784903,1781160651000,-503.05524,0.00021,30]
[424784902,1781160651000,-500.0,0.00021,30]
[424784899,1781160651000,-661.72841598,0.000208,2]
[424784900,1781160651000,-9040.60058098,0.000209,30]
[424784905,1781160651000,-215.95576085,0.00021,30]
[424784898,1781160651000,-151.0,0.00020723,2]
[424784916,1781160651000,-1100.0,0.00021,2]
[424784906,1781160651000,-15000.0,0.00021,2]
[424784909,1781160651000,-6111.0,0.00021,2]
[424784908,1781160651000,-15000.0,0.00021,2]
[424784907,1781160651000,-6111.0,0.00021,2]
[424784914,1781160651000,-348.0,0.00021,2]
[424784912,1781160651000,-2626.80302091,0.00021,2]
[424784918,1781160651000,-279.0,0.00021,2]
[424784915,1781160651000,-292.0,0.00021,2]
[424784913,1781160651000,-354.0,0.00021,2]
[424784910,1781160651000,-4667.87209449,0.00021,2]
[424784904,1781160651000,-160.7399468,0.00021,12]
[424784911,1781160651000,-284.91992931,0.00021,30]
[424784962,1781160652000,-1517.92753426,0.00022,30]
[424784972,1781160652000,-491.0,0.00022,2]
[424784960,1781160652000,-150.0,0.00021918,2]
[424784961,1781160652000,-214.0,0.00022,10]
[424784964,1781160652000,-354.0,0.00022,2]
[424784973,1781160652000,-206.0,0.00022,2]
[424784963,1781160652000,-377577.7498923,0.00022,4]
[424784970,1781160652000,-279.0,0.00022,2]
[424784971,1781160652000,-355.0,0.00022,2]
[424784977,1781160652000,-380.0,0.00022,2]
[424784969,1781160652000,-1624.0,0.00022,2]
[424784966,1781160652000,-450.0,0.00022,2]
[424784967,1781160652000,-292.0,0.00022,2]
[424784948,1781160652000,-2494.55939288,0.00021819,2]
[424784958,1781160652000,-550.0,0.00021918,8]
[424784951,1781160652000,-151.0,0.00021819,2]
[424784959,1781160652000,-550.0,0.00021918,8]
[424784957,1781160652000,-152.26468,0.00021918,2]
[424784952,1781160652000,-1300.0,0.000219,7]
[424784955,1781160652000,-5000.0,0.00021918,2]
[424784956,1781160652000,-151.0,0.00021918,2]
[424784953,1781160652000,-605.42,0.000219,2]
[424784954,1781160652000,-162.01362747,0.00021917,2]
[424784950,1781160652000,-251.11897888,0.00021819,2]
[424784947,1781160652000,-209.40437684,0.00021819,2]
[424784949,1781160652000,-151.0,0.00021819,2]
[424784976,1781160652000,-345.0,0.00022,2]
[424784968,1781160652000,-1100.0,0.00022,2]
[424784974,1781160652000,-274.0,0.00022,2]
[424784965,1781160652000,-348.0,0.00022,2]
[424784978,1781160652000,-169.05,0.00022,2]
[424784975,1781160652000,-932.0,0.00022,2]
[424785004,1781160652000,-151.0,0.00022915,2]
[424785007,1781160652000,-405023.03675314,0.00023,10]
[424785006,1781160652000,-250.76960971,0.00022915,2]
[424785005,1781160652000,-270.0455652,0.00022915,2]
[424785003,1781160652000,-2682.57183977,0.00022915,2]
[424785000,1781160652000,-200.0,0.00022915,2]
[424784999,1781160652000,-185.08,0.00022775,2]
[424785001,1781160652000,-162.6850253,0.00022915,2]
[424784998,1781160652000,-1160.880942,0.000227,7]
[424784996,1781160652000,-1669.9,0.00022466,2]
[424784994,1781160652000,-691.0,0.00022384,6]
[424784993,1781160652000,-151.0,0.00022367,2]
[424784995,1781160652000,-165.06322829,0.00022401,2]
[424784997,1781160652000,-731.60666986,0.00022697,2]
[424785002,1781160652000,-225.18697532,0.00022915,2]
[424784992,1781160652000,-260.4103811,0.00022367,2]
[424784990,1781160652000,-2586.85809042,0.00022367,2]
[424784987,1781160652000,-200.0,0.00022367,2]
[424784984,1781160652000,-933.0,0.00022033,2]
[424784986,1781160652000,-397.7,0.00022353,2]
[424784979,1781160652000,-3556.0,0.00022033,2]
[424784985,1781160652000,-3643.0,0.00022033,2]
[424784989,1781160652000,-217.15233878,0.00022367,2]
[424784988,1781160652000,-162.6850253,0.00022367,2]
[424784983,1781160652000,-1227.0,0.00022033,2]
[424784981,1781160652000,-382.0,0.00022033,2]
[424784982,1781160652000,-1274.0,0.00022033,2]
[424784980,1781160652000,-1358.0,0.00022033,2]
[424784991,1781160652000,-151.0,0.00022367,2]
[424785008,1781160653000,-562.1,0.00023,10]
[424785009,1781160654000,-151.0,0.0001805,2]
[424785012,1781160654000,-11473.76980288,0.00023,10]
[424785011,1781160654000,-43920.53368582,0.00023,10]
[424785013,1781160654000,-2637.48794105,0.00023,10]
[424785021,1781160654000,-292.0,0.00023,2]
[424785014,1781160654000,-2722.25781699,0.00023,10]
[424785018,1781160654000,-151.0,0.00023,2]
[424785016,1781160654000,-215.95576085,0.00023,10]
[424785017,1781160654000,-151.0,0.00023,2]
[424785019,1781160654000,-354.0,0.00023,2]
[424785020,1781160654000,-348.0,0.00023,2]
[424785010,1781160654000,-972.34400012,0.00023,10]
[424785023,1781160654000,-1624.0,0.00023,2]
[424785015,1781160654000,-284.91992931,0.00023,10]
[424785024,1781160654000,-279.0,0.00023,2]
[424785022,1781160654000,-1100.0,0.00023,2]
[424785036,1781160654000,-150.0,0.00023288,2]
[424785035,1781160654000,-153.80113636,0.00023186,2]
[424785034,1781160654000,-691.0,0.0002301,6]
[424785033,1781160654000,-749.0,0.00023,20]
[424785032,1781160654000,-380.0,0.00023,2]
[424785037,1781160654000,-211.0,0.00023355,10]
[424785031,1781160654000,-224.34965107,0.00023,3]
[424785029,1781160654000,-932.0,0.00023,2]
[424785030,1781160654000,-345.0,0.00023,2]
[424785027,1781160654000,-206.0,0.00023,2]
[424785025,1781160654000,-355.0,0.00023,2]
[424785028,1781160654000,-274.0,0.00023,2]
[424785026,1781160654000,-491.0,0.00023,2]
[424785071,1781160655000,-162.6850253,0.00024011,2]
[424785070,1781160655000,-200.0,0.00024011,2]
[424785064,1781160655000,-499.50088181,0.00024,2]
[424785089,1781160655000,-167.68371866,0.00024658,2]
[424785066,1781160655000,-288.99872234,0.00024,2]
[424785063,1781160655000,-364.86338781,0.00024,2]
[424785067,1781160655000,-946.18303554,0.00024,2]
[424785073,1781160655000,-2884.75459676,0.00024011,2]
[424785068,1781160655000,-351.6183582,0.00024,2]
[424785075,1781160655000,-422.19216382,0.00024011,2]
[424785080,1781160655000,-153.8011364,0.00024555,2]
[424785076,1781160655000,-691.0,0.00024263,7]
[424785072,1781160655000,-242.15909246,0.00024011,2]
[424785074,1781160655000,-151.0,0.00024011,2]
[424785078,1781160655000,-185.29,0.0002438,2]
[424785077,1781160655000,-397.7,0.00024324,2]
[424785069,1781160655000,-396.75424922,0.00024,2]
[424785082,1781160655000,-151.0,0.00024557,2]
[424785083,1781160655000,-775.4783256,0.00024557,2]
[424785090,1781160655000,-151.0,0.00024658,2]
[424785084,1781160655000,-200.0,0.00024559,2]
[424785079,1781160655000,-284.91992931,0.000244,10]
[424785062,1781160655000,-210.47573165,0.00024,2]
[424785053,1781160655000,-298.5,0.00023945,2]
[424785058,1781160655000,-293.48519531,0.00024,2]
[424785038,1781160655000,-165.78,0.00023425,2]
[424785039,1781160655000,-116.65570542,0.00023463,2]
[424785041,1781160655000,-162.6850253,0.00023463,2]
[424785040,1781160655000,-83.34429458,0.00023463,2]
[424785044,1781160655000,-1354.20385456,0.00023463,2]
[424785045,1781160655000,-151.0,0.00023463,2]
[424785046,1781160655000,-280.03725111,0.00023463,2]
[424785049,1781160655000,-284.91992931,0.000237,10]
[424785047,1781160655000,-691.0,0.00023636,7]
[424785048,1781160655000,-414.63,0.00023652,2]
[424785042,1781160655000,-233.5188934,0.00023463,2]
[424785043,1781160655000,-1427.62314328,0.00023463,2]
[424785051,1781160655000,-157.46172826,0.00023701,2]
[424785050,1781160655000,-215.95576085,0.000237,10]
[424785052,1781160655000,-605.42,0.000239,7]
[424785059,1781160655000,-1119.32517211,0.00024,2]
[424785060,1781160655000,-1639.99805984,0.00024,2]
[424785054,1781160655000,-215.95576085,0.00024,7]
[424785055,1781160655000,-354.77158865,0.00024,2]
[424785056,1781160655000,-357.98133607,0.00024,2]
[424785057,1781160655000,-500.0,0.00024,2]
[424785061,1781160655000,-71.17027781,0.00024,2]
[424785081,1781160655000,-621.78829552,0.00024557,2]
[424785065,1781160655000,-224.9302677,0.00024,2]
[424785088,1781160655000,-151.0,0.00024559,2]
[424785115,1781160655000,-150.0,0.00026028,2]
[424785116,1781160655000,-691.0,0.00026141,9]
[424785117,1781160655000,-280.03725111,0.00026203,2]
[424785119,1781160655000,-2523.097896,0.00026384,2]
[424785120,1781160655000,-2523.097896,0.00026384,2]
[424785121,1781160655000,-2523.097896,0.00026384,2]
[424785118,1781160655000,-397.7,0.00026296,2]
[424785123,1781160655000,-2523.097896,0.00026384,2]
[424785122,1781160655000,-2523.097896,0.00026384,2]
[424785124,1781160655000,-2523.097896,0.00026384,2]
[424785112,1781160655000,-270.0455652,0.00025655,2]
[424785125,1781160655000,-2523.097896,0.00026384,2]
[424785130,1781160655000,-166.0,0.00026916,2]
[424785127,1781160655000,-152.0,0.00026393,3]
[424785131,1781160655000,-8711.9,0.00027088,120]
[424785129,1781160655000,-691.0,0.00026768,10]
[424785133,1781160655000,-151.0,0.00027296,2]